bitfinex-derivatives/quotes_SOLF0:USTF0_20250625
["timestamp","ask_amount","ask_price","bid_price","bid_amount"]
[1750845507732,6.8715,145.46,145.43,6.8725]
[1750845508029,3.40700256,145.47,145.44,6.8719]
[1750845508325,10.27800256,145.47,145.44,6.8719]
[1750845508625,5.72320256,145.49,145.41,3.40700256]
[1750845508825,6.8704,145.48,145.45,6.8713]
[1750845509233,3.40700256,145.49,145.41,3.40700256]
[1750845509728,6.8702,145.48,145.46,6.8709]
[1750845510722,6.8702,145.48,145.41,3.40700256]
[1750845512129,6.8702,145.48,145.46,6.8711]
[1750845512517,6.8702,145.48,145.41,3.40700256]
[1750845512815,3.40700256,145.49,145.41,3.40700256]
[1750845513029,3.40700256,145.49,145.44,6.8718]
[1750845513336,3.40700256,145.49,145.41,3.40700256]
[1750845513826,10.27690256,145.49,145.46,6.8709]
[1750845515830,10.27690256,145.49,145.47,6.8706]
[1750845517026,6.8699,145.49,145.47,6.8706]
[1750845517534,10.27650256,145.5,145.48,6.8701]
[1750845517933,10.27650256,145.5,145.41,3.40700256]
[1750845518133,10.27650256,145.5,145.47,6.8702]
[1750845518830,3.40700256,145.5,145.43,3.40700256]
[1750845519037,6.8691,145.51,145.44,2.2842]
[1750845519228,6.8691,145.51,145.44,4.5135]
[1750845519429,10.27660256,145.5,145.44,4.5135]
[1750845519728,3.40700256,145.5,145.44,4.5135]
[1750845520235,3.40700256,145.5,145.46,6.8708]
[1750845520236,6.87,145.49,145.46,6.8708]
[1750845520733,6.8702,145.48,145.46,6.8708]
[1750845520935,3.40700256,145.48,145.44,6.8717]
[1750845521127,3.40700256,145.48,145.41,3.40700256]
[1750845521430,6.8709,145.47,145.41,3.40700256]
[1750845521632,3.40700256,145.48,145.4,2.2891]
[1750845521937,10.27940256,145.44,145.42,6.873]
[1750845522322,3.40700256,145.46,145.39,3.40700256]
[1750845522532,3.40700256,145.46,145.45,6.8716]
[1750845522838,6.8709,145.47,145.45,6.8716]
[1750845523231,6.8709,145.47,145.45,15.4623626]
[1750845523835,6.8709,145.47,145.46,8.5907626]
[1750845524532,6.8735,145.41,145.4,17.1815252]
[1750845524735,3.40437677,145.41,145.4,6.44579474]
[1750845525033,3.40437677,145.44,145.35,3.40437677]
[1750845525231,6.8732,145.42,145.36,7.1816]
[1750845525435,10.27757677,145.42,145.36,7.1816]
[1750845525732,3.40437677,145.42,145.36,7.1816]
[1750845526235,6.8746,145.39,145.36,4.8654]
[1750845527236,10.27937677,145.38,145.36,4.8654]
[1750845528635,3.40628304,145.37,145.36,4.8654]
[1750845528825,3.40628304,145.37,145.29,5.78798304]
[1750845529027,10.28198304,145.37,145.3,4.687]
[1750845529432,10.28198304,145.37,145.34,6.8768]
[1750845529629,3.40628304,145.37,145.3,4.687]
[1750845530038,3.40628304,145.37,145.35,6.8759]
[1750845530833,3.40628304,145.39,145.31,3.40628304]
[1750845531438,3.40628304,145.41,145.33,3.40628304]
[1750845531940,3.40628304,145.41,145.39,6.8742]
[1750845535637,3.40628304,145.41,145.36,4.7656]
[1750845537138,3.40628304,145.41,145.4,6.874]
[1750845539534,3.40628304,145.41,145.39,6.8742]
[1750845541040,3.40628304,145.41,145.4,6.874]
[1750845541243,27.509,145.49,145.36,4.7656]
[1750845541244,3.40628304,145.43,145.36,4.7656]
[1750845541743,3.40628304,145.43,145.41,6.8733]
[1750845543143,10.27888304,145.43,145.41,6.8733]
[1750845543642,3.40628304,145.43,145.41,6.8733]
[1750845548343,6.8723,145.44,145.41,6.8733]
[1750845548535,10.27858304,145.44,145.41,6.8733]
[1750845548735,6.8726,145.43,145.41,6.8733]
[1750845549442,3.40628304,145.44,145.42,6.873]
[1750845550045,3.40628304,145.46,145.43,6.8726]
[1750845551146,6.8717,145.45,145.43,6.8726]
[1750845551440,3.40628304,145.46,145.44,6.8721]
[1750845552246,3.40628304,145.46,145.41,4.8223]
[1750845552543,10.27748304,145.46,145.41,4.8223]
[1750845552945,10.27748304,145.46,145.44,6.8719]
[1750845553541,10.27748304,145.46,145.41,4.8223]
[1750845554044,10.27748304,145.46,145.44,6.8721]
[1750845554644,3.40628304,145.46,145.41,4.8223]
[1750845555247,3.40628304,145.46,145.44,6.8718]
[1750845558445,10.27748304,145.46,145.44,6.8718]
[1750845558748,3.40628304,145.46,145.44,6.8718]
[1750845560350,3.40628304,145.46,145.45,6.8716]
[1750845563254,3.40628304,145.46,145.44,6.8719]
[1750845565254,3.40628304,145.46,145.45,6.8716]
[1750845571768,10.27748304,145.46,145.44,6.8719]
[1750845572064,6.8712,145.46,145.44,6.8719]
[1750845572264,10.27748304,145.46,145.44,6.8719]
[1750845572769,3.40628304,145.46,145.45,6.8716]
[1750845579074,3.40628304,145.46,145.44,6.8718]
[1750845579872,3.40628304,145.46,145.45,15.46102284]
[1750845580676,3.40628304,145.46,145.45,8.58942284]
[1750845583579,10.27748304,145.46,145.45,8.58942284]
[1750845587984,3.40628304,145.46,145.45,15.46102284]
[1750845588178,3.40182139,145.52,145.45,8.58942284]
[1750845588383,3.40182139,145.49,145.48,6.44200015]
[1750845589384,3.40079,145.5,145.48,6.87]
[1750845589584,3.40079,145.5,145.49,6.44134618]
[1750845590271,10.27029,145.5,145.49,6.44134618]
[1750845590681,6.8695,145.5,145.49,6.44134618]
[1750845590884,3.40079,145.5,145.49,6.44134618]
[1750845591985,3.40079,145.5,145.49,13.31104618]
[1750845592374,3.40079,145.5,145.49,6.44134618]
[1750845593287,3.40079,145.5,145.48,8.58942284]
[1750845593585,3.40079,145.5,145.47,6.41120497]
[1750845593779,3.40079,145.5,145.49,6.8697]
[1750845595288,6.8686,145.52,145.49,6.8695]
[1750845595588,3.40079,145.51,145.49,13.28070497]
[1750845595887,3.40079,145.51,145.49,6.41120497]
[1750845596184,3.40079,145.51,145.5,6.8693]
[1750845596586,10.26889,145.53,145.5,6.8693]
[1750845596786,10.26889,145.53,145.5,13.28050497]
[1750845597287,10.26889,145.53,145.51,6.8687]
[1750845597487,10.26889,145.53,145.5,6.41120497]
[1750845597688,10.26889,145.53,145.5,13.28020497]
[1750845598080,10.26889,145.53,145.5,6.41120497]
[1750845598788,10.26889,145.53,145.5,13.28020497]
[1750845598990,3.40079,145.51,145.5,6.41120497]
[1750845603290,10.26959,145.51,145.5,6.41120497]
[1750845604886,3.40079,145.51,145.45,8.58942284]
[1750845605086,3.40079,145.46,145.45,8.58942284]
[1750845605286,3.40079,145.46,145.45,15.46082284]
[1750845605587,3.40079,145.46,145.45,6.8714]
[1750845609186,3.40079,145.46,145.44,6.872]
[1750845609992,3.40079,145.46,145.45,6.8716]
[1750845612700,3.40079,145.46,145.44,6.8719]
[1750845613298,10.27199,145.46,145.43,6.8722]
[1750845613498,3.40079,145.44,145.42,13.28512284]
[1750845614393,3.40079,145.44,145.43,6.8725]
[1750845614694,3.40079,145.44,145.42,13.28512284]
[1750845614897,10.27289,145.44,145.41,8.58942284]
[1750845615099,3.40079,145.42,145.41,8.58942284]
[1750845616300,3.40079,145.42,145.41,6.8735]
[1750845619199,3.40079,145.42,145.4,6.8737]
[1750845619503,3.40079,145.41,145.38,13.21972284]
[1750845619900,3.40079,145.41,145.4,6.874]
[1750845620090,3.40079,145.43,145.39,8.58942284]
[1750845620496,3.40079,145.43,145.42,6.873]
[1750845621207,6.8713,145.46,145.39,8.58942284]
[1750845621412,3.40079,145.45,145.4,10.92232284]
[1750845621602,3.40079,145.43,145.4,10.92232284]
[1750845622097,3.40079,145.43,145.42,6.8727]
[1750845624508,3.40079,145.43,145.41,6.8733]
[1750845624805,3.40079,145.43,145.4,10.92232284]
[1750845625406,3.40079,145.43,145.41,6.8735]
[1750845626210,3.40079,145.43,145.42,6.873]
[1750845629199,3.40079,145.43,145.41,6.8732]
[1750845629707,3.40079,145.43,145.42,6.873]
[1750845633017,3.40079,145.43,145.41,6.8734]
[1750845634218,2.17845855,145.42,145.41,6.8734]
[1750845645425,6.8718,145.45,145.42,6.8726]
[1750845645633,2.17845855,145.43,145.42,6.8726]
[1750845648035,6.8714,145.46,145.44,6.8721]
[1750845648233,2.17845855,145.45,145.41,11.02062284]
[1750845648432,2.17845855,145.44,145.41,11.02062284]
[1750845649138,2.17845855,145.44,145.43,6.8723]
[1750845651942,6.8716,145.45,145.43,6.8723]
[1750845652237,2.17845855,145.44,145.43,6.8723]
[1750845655837,63.23429589,145.53,145.46,6.8711]
[1750845656047,2.17845855,145.47,145.46,6.8711]
[1750845656232,2.17845855,145.48,145.45,8.58942284]
[1750845656434,2.17845855,145.49,145.47,15.46002284]
[1750845656630,2.17845855,145.49,145.47,8.58942284]
[1750845656838,2.17845855,145.5,145.49,6.8695]
[1750845657338,63.23429589,145.53,145.48,8.58942284]
[1750845657537,2.17845855,145.51,145.48,8.58942284]
[1750845657735,2.17845855,145.51,145.49,6.8697]
[1750845657935,2.17845855,145.51,145.48,8.58942284]
[1750845658647,2.17845855,145.51,145.5,6.8692]
[1750845661246,70.10249589,145.53,145.5,6.8692]
[1750845661547,2.17845855,145.52,145.51,6.8688]
[1750845662033,13.7266,145.63,145.5,2.17845855]
[1750845662240,2.17845855,145.55,145.51,2.17845855]
[1750845662433,2.17845855,145.57,145.53,2.17845855]
[1750845662637,2.17845855,145.57,145.55,6.8666]
[1750845662839,2.17845855,145.57,145.53,2.17845855]
[1750845663041,2.17845855,145.57,145.56,6.8664]
[1750845663741,2.17845855,145.58,145.57,6.8658]
[1750845664348,3.3962201,145.6,145.57,6.8658]
[1750845664940,10.2610201,145.6,145.57,6.8658]
[1750845665346,10.2610201,145.6,145.56,6.8662]
[1750845665541,6.8651,145.59,145.56,6.8662]
[1750845665840,3.3962201,145.6,145.55,2.2007]
[1750845666252,6.8658,145.58,145.55,9.0673]
[1750845667343,6.8652,145.59,145.56,6.8664]
[1750845668054,10.2609201,145.6,145.57,6.8659]
[1750845668550,3.3962201,145.6,145.55,2.2007]
[1750845668848,6.865,145.59,145.56,6.8661]
[1750845670547,6.865,145.59,145.57,6.8659]
[1750845670747,10.2608201,145.6,145.57,6.8659]
[1750845670948,3.3962201,145.6,145.57,6.8659]
[1750845671350,6.8648,145.6,145.57,6.8659]
[1750845671553,3.3962201,145.59,145.55,2.2007]
[1750845671849,10.2614201,145.59,145.55,2.2007]
[1750845672050,10.2614201,145.59,145.56,6.8661]
[1750845672253,10.2614201,145.59,145.55,2.2007]
[1750845672551,10.2614201,145.59,145.56,6.8661]
[1750845673445,6.8655,145.58,145.55,9.0673]
[1750845673845,6.8655,145.58,145.55,2.2007]
[1750845674046,3.3962201,145.59,145.55,2.2007]
[1750845674445,6.8655,145.58,145.55,2.2007]
[1750845675444,6.8655,145.58,145.55,9.0675]
[1750845675445,3.3962201,145.58,145.55,9.0675]
[1750845675651,3.3962201,145.58,145.55,2.2007]
[1750845675850,3.3962201,145.58,145.55,9.0672]
[1750845676354,10.2618201,145.58,145.55,9.0672]
[1750845676545,10.2618201,145.58,145.55,2.2007]
[1750845677044,6.8656,145.58,145.55,9.0672]
[1750845679852,6.866,145.57,145.55,9.0672]
[1750845681152,6.8657,145.58,145.55,9.0672]
[1750845681552,3.3962201,145.59,145.55,9.0672]
[1750845681756,6.8655,145.58,145.55,9.0672]
[1750845683256,6.8655,145.58,145.56,6.8663]
[1750845683458,3.3962201,145.6,145.55,2.2007]
[1750845683950,10.2611201,145.6,145.57,6.8657]
[1750845684154,3.3962201,145.58,145.55,2.2007]
[1750845684456,10.2607201,145.6,145.55,2.2007]
[1750845684757,3.3962201,145.6,145.55,2.2007]
[1750845685055,3.3962201,145.6,145.59,6.865]
[1750845685257,13.7183,145.72,145.57,3.3962201]
[1750845685461,3.3962201,145.66,145.59,3.3962201]
[1750845685661,10.2581201,145.66,145.63,6.8627]
[1750845686159,3.3962201,145.66,145.59,3.3962201]
[1750845686847,10.2581201,145.66,145.63,6.8629]
[1750845687253,3.3962201,145.66,145.59,3.3962201]
[1750845687452,6.8622,145.65,145.62,6.8633]
[1750845687660,3.3962201,145.66,145.62,6.8633]
[1750845688162,6.8622,145.65,145.62,6.8633]
[1750845688347,6.8622,145.65,145.61,6.8638]
[1750845689365,6.8627,145.64,145.61,6.8638]
[1750845690259,6.8627,145.64,145.62,6.8636]
[1750845690663,6.8624,145.65,145.59,3.3962201]
[1750845690869,3.3962201,145.66,145.63,6.8631]
[1750845691262,10.2581201,145.66,145.63,6.8631]
[1750845692060,6.8619,145.66,145.63,6.8631]
[1750845692462,6.8622,145.65,145.63,6.8631]
[1750845692856,6.8622,145.65,145.62,6.8633]
[1750845695158,6.8622,145.65,145.63,6.863]
[1750845695356,6.8619,145.66,145.63,6.863]
[1750845695968,6.8622,145.65,145.63,6.863]
[1750845696562,3.3962201,145.67,145.63,6.863]
[1750845696563,6.8619,145.66,145.63,6.863]
[1750845696955,6.8624,145.65,145.62,6.8632]
[1750845697160,3.3962201,145.67,145.62,6.8632]
[1750845697461,6.8608,145.68,145.6,3.3962201]
[1750845697656,3.3962201,145.68,145.61,4.4288]
[1750845698155,1.19480876,145.76,145.63,13.7261]
[1750845698355,3.3962201,145.72,145.64,3.3962201]
[1750845699462,3.3962201,145.72,145.7,6.8596]
[1750845699665,3.3962201,145.72,145.62,2.219]
[1750845699854,3.3962201,145.69,145.65,6.8619]
[1750845700064,3.3962201,145.67,145.62,2.219]
[1750845700669,3.3962201,145.67,145.63,6.8629]
[1750845700859,3.3962201,145.65,145.61,2.2241]
[1750845701055,3.3962201,145.63,145.58,2.2057]
[1750845701262,3.3962201,145.59,145.58,2.2057]
[1750845701958,3.3962201,145.59,145.55,2.3554]
[1750845702464,3.3962201,145.59,145.56,6.8661]
[1750845704270,6.8655,145.58,145.56,6.8661]
[1750845704766,10.2614201,145.59,145.56,6.8661]
[1750845704967,3.3962201,145.59,145.57,6.8658]
[1750845705157,3.3962201,145.61,145.55,2.3554]
[1750845705362,10.2603201,145.61,145.55,2.3554]
[1750845705868,6.8645,145.6,145.55,2.3554]
[1750845706262,3.3962201,145.61,145.58,6.8654]
[1750845706464,6.8645,145.6,145.55,2.3554]
[1750845706772,3.3962201,145.59,145.56,6.8661]
[1750845707669,10.2612201,145.59,145.56,6.8661]
[1750845708860,10.2612201,145.59,145.57,6.8659]
[1750845709064,3.3962201,145.59,145.57,6.8659]
[1750845709468,3.3962201,145.59,145.55,2.3554]
[1750845709469,3.3962201,145.59,145.56,6.8662]
[1750845709766,10.2613201,145.59,145.55,2.3554]
[1750845710163,10.2613201,145.59,145.57,6.8659]
[1750845710366,3.3962201,145.59,145.57,6.8659]
[1750845712874,3.3962201,145.59,145.56,6.8662]
[1750845713575,6.8647,145.6,145.56,6.8662]
[1750845713885,3.3962201,145.57,145.53,2.4309]
[1750845714367,10.2625201,145.57,145.54,6.8671]
[1750845715773,3.3962201,145.55,145.5,8.58942284]
[1750845716276,3.3962201,145.55,145.52,6.8679]
[1750845716879,10.2631201,145.55,145.52,6.8679]
[1750845717374,6.8674,145.54,145.51,6.8685]
[1750845717879,6.8674,145.54,145.49,10.90062284]
[1750845718079,10.2633201,145.55,145.52,6.8683]
[1750845719682,6.8674,145.54,145.52,6.8683]
[1750845719979,6.8674,145.54,145.51,6.8685]
[1750845720184,10.2641201,145.53,145.49,2.3112]
[1750845720482,3.3962201,145.53,145.51,6.8687]
[1750845721073,3.3962201,145.55,145.49,2.3112]
[1750845721272,10.2633201,145.55,145.49,2.3112]
[1750845721470,10.2633201,145.55,145.52,6.868]
[1750845722181,10.2633201,145.55,145.53,6.8678]
[1750845722481,3.3962201,145.55,145.53,6.8678]
[1750845723076,10.2633201,145.55,145.52,6.8681]
[1750845723681,6.8674,145.54,145.51,6.8685]
[1750845723873,3.3962201,145.6,145.49,2.3112]
[1750845723874,3.3962201,145.53,145.49,2.3112]
[1750845724071,3.3962201,145.51,145.48,2.2188]
[1750845724277,3.3962201,145.51,145.45,8.58942284]
[1750845724483,3.3962201,145.51,145.44,92.31448289]
[1750845724969,6.8695,145.5,145.47,6.8706]
[1750845725172,3.3962201,145.51,145.44,92.31448289]
[1750845725685,3.3962201,145.51,145.45,10.90952284]
[1750845726282,3.3962201,145.51,145.49,6.8693]
[1750845726479,3.3962201,145.53,145.46,8.58942284]
[1750845726982,3.3962201,145.53,145.47,2.4186]
[1750845727284,10.2640201,145.53,145.51,6.8685]
[1750845728689,6.8683,145.52,145.49,6.8693]
[1750845728982,3.3962201,145.51,145.49,6.8693]
[1750845729183,3.3962201,145.51,145.48,6.8699]
[1750845729378,3.3962201,145.51,145.45,2.3201]
[1750845729785,6.8695,145.5,145.47,6.8704]
[1750845729981,3.3962201,145.51,145.45,2.3201]
[1750845730280,10.2652201,145.51,145.48,6.8698]
[1750845730587,10.2652201,145.51,145.45,2.3201]
[1750845730882,3.3962201,145.51,145.49,6.8696]
[1750845731079,13.7304,145.59,145.45,14.30574294]
[1750845731080,3.3962201,145.53,145.45,14.30574294]
[1750845731481,6.8684,145.52,145.45,14.30574294]
[1750845731676,3.3962201,145.53,145.45,14.30574294]
[1750845731989,3.3962201,145.55,145.53,6.8675]
[1750845732478,3.3962201,145.55,145.54,6.8673]
[1750845732676,60.13200469,145.6,145.51,3.3962201]
[1750845732989,3.3962201,145.58,145.52,2.4146]
[1750845733387,10.2620201,145.58,145.55,6.8666]
[1750845734191,6.8659,145.57,145.55,6.8666]
[1750845737979,6.8659,145.57,145.54,6.8671]
[1750845739893,10.2619201,145.58,145.55,6.8668]
[1750845740192,10.2619201,145.58,145.52,2.4146]
[1750845740379,6.866,145.57,145.53,2.2845]
[1750845740586,6.866,145.57,145.52,2.4146]
[1750845740785,3.3962201,145.58,145.52,2.4146]
[1750845740986,13.6667572,145.53,145.43,17.17884568]
[1750845741182,13.6667572,145.53,145.25,50.70607995]
[1750845741183,27.469,145.5,145.33,4.5097]
[1750845741385,3.3988786,145.42,145.34,3.3988786]
[1750845741587,27.469,145.5,145.34,3.3988786]
[1750845741785,3.3988786,145.43,145.34,3.3988786]
[1750845742287,6.8735,145.41,145.34,3.3988786]
[1750845742489,3.3988786,145.42,145.34,3.3988786]
[1750845742693,27.469,145.5,145.36,6.8755]
[1750845742897,6.8741,145.4,145.36,6.8755]
[1750845744390,5.6731606,145.44,145.34,5.6731606]
[1750845744593,5.6731606,145.48,145.38,5.6731606]
[1750845744902,6.8709,145.47,145.38,5.6731606]
[1750845745200,5.6731606,145.48,145.39,2.2224]
[1750845745396,5.6731606,145.48,145.4,2.2275]
[1750845745599,12.5436606,145.48,145.44,6.8718]
[1750845746105,6.8698,145.49,145.45,6.8712]
[1750845746309,5.6731606,145.5,145.45,6.8712]
[1750845746798,6.8704,145.48,145.45,6.8712]
[1750845747002,6.8704,145.48,145.44,6.8719]
[1750845747604,6.8704,145.48,145.41,2.3325]
[1750845747800,6.8704,145.48,145.43,6.8725]
[1750845748102,6.8704,145.48,145.41,2.3325]
[1750845748307,5.6731606,145.48,145.41,2.3325]
[1750845748604,5.6731606,145.46,145.41,2.3325]
[1750845749605,6.8719,145.45,145.42,6.8727]
[1750845750509,12.5444606,145.46,145.43,6.8724]
[1750845751210,13.7339,145.55,145.39,2.2224]
[1750845751211,5.6731606,145.44,145.39,2.2224]
[1750845751402,5.6731606,145.42,145.39,2.2224]
[1750845752503,5.6731606,145.42,145.34,4.6466]
[1750845752698,5.6731606,145.42,145.35,2.1988]
[1750845753299,5.6731606,145.5,145.35,7.8719606]
[1750845753509,5.6731606,145.45,145.35,7.8719606]
[1750845753710,6.8721,145.44,145.41,6.8734]
[1750845754912,5.6731606,145.45,145.41,6.8734]
[1750845754913,12.5449606,145.45,145.41,6.8734]
[1750845755109,12.5449606,145.45,145.42,6.873]
[1750845756604,12.5449606,145.45,145.41,6.8733]
[1750845756808,5.6731606,145.44,145.35,7.8719606]
[1750845757309,12.5452606,145.44,145.41,6.8731]
[1750845759217,6.8725,145.43,145.4,6.8737]
[1750845759416,5.6731606,145.44,145.35,2.1988]
[1750845760112,12.5455606,145.44,145.35,2.1988]
[1750845760821,12.5455606,145.44,145.41,6.8733]
[1750845761220,12.5448606,145.45,145.35,7.8719606]
[1750845761817,5.6731606,145.45,145.37,5.6731606]
[1750845762117,5.6731606,145.47,145.37,5.6731606]
[1750845762314,6.869,145.57,145.39,5.6731606]
[1750845762615,5.6731606,145.48,145.4,2.4235]
[1750845762821,5.6731606,145.48,145.46,6.8709]
[1750845763508,12.5433606,145.48,145.46,6.8709]
[1750845763712,5.6731606,145.49,145.47,6.8706]
[1750845764017,6.8695,145.5,145.47,6.8706]
[1750845764217,12.5426606,145.5,145.47,6.8706]
[1750845765215,6.8697,145.49,145.47,6.8706]
[1750845766019,12.5424606,145.5,145.47,6.8706]
[1750845767418,6.8698,145.49,145.46,6.8709]
[1750845768218,6.8698,145.49,145.47,6.8706]
[1750845768423,6.8698,145.49,145.42,2.2329]
[1750845768924,6.8698,145.49,145.46,6.8709]
[1750845769518,5.6731606,145.48,145.45,6.8714]
[1750845769719,5.6731606,145.46,145.42,2.2329]
[1750845770130,5.6731606,145.46,145.44,6.8718]
[1750845771122,12.5443606,145.46,145.44,6.8718]
[1750845771523,12.5443606,145.46,145.43,6.8723]
[1750845772926,12.5443606,145.46,145.44,6.872]
[1750845773325,6.8709,145.47,145.44,6.872]
[1750845773629,104.33994649,145.55,145.42,2.2329]
[1750845773630,5.6731606,145.48,145.42,2.2329]
[1750845774237,5.6731606,145.48,145.46,6.8709]
[1750845774619,5.6731606,145.48,145.42,2.2329]
[1750845774823,6.8701,145.49,145.42,2.2329]
[1750845775134,12.5425606,145.5,145.42,2.2329]
[1750845775731,12.5425606,145.5,145.47,6.8702]
[1750845775928,12.5425606,145.5,145.42,2.2329]
[1750845776631,6.8697,145.49,145.42,2.2329]
[1750845778134,6.8697,145.49,145.47,6.8703]
[1750845779041,6.8703,145.48,145.46,6.8708]
[1750845779537,5.67046649,145.47,145.42,2.2329]
[1750845779736,5.67046649,145.45,145.42,2.2329]
[1750845779928,5.67046649,145.45,145.41,2.4269]
[1750845780326,3.40314982,145.45,145.41,2.4269]
[1750845780545,3.40315449,145.45,145.41,2.4269]
[1750845780726,10.27475449,145.45,145.43,6.8723]
[1750845782435,12.54327273,145.46,145.41,2.4269]
[1750845782839,12.54327273,145.46,145.43,6.8723]
[1750845783044,12.54327273,145.46,145.41,2.4269]
[1750845783644,12.54327273,145.46,145.43,6.8723]
[1750845783838,6.8717,145.45,145.43,6.8723]
[1750845784840,12.54327273,145.46,145.43,6.8723]
[1750845785743,12.54327273,145.46,145.44,6.872]
[1750845786746,6.8717,145.45,145.43,6.8723]
[1750845787643,5.67197273,145.44,145.43,6.8723]
[1750845789844,5.67197273,145.44,145.42,6.8728]
[1750845790144,5.67197273,145.44,145.41,8.4976882]
[1750845790344,5.67197273,145.44,145.42,6.873]
[1750845790542,12.54427273,145.44,145.42,6.873]
[1750845790846,5.67197273,145.44,145.38,8.4976882]
[1750845791041,5.67197273,145.41,145.38,8.4976882]
[1750845791443,5.67197273,145.41,145.37,13.2645882]
[1750845791646,5.67197273,145.41,145.4,6.8735]
[1750845792045,5.67197273,145.41,145.37,13.2645882]
[1750845792246,5.67197273,145.41,145.37,10.9354882]
[1750845794244,5.67197273,145.41,145.4,6.874]
[1750845796754,5.67197273,145.43,145.42,6.8729]
[1750845797052,5.67197273,145.43,145.38,8.4976882]
[1750845797755,12.54447273,145.43,145.41,6.8731]
[1750845799055,5.67197273,145.43,145.41,6.8731]
[1750845801764,12.54457273,145.43,145.41,6.8731]
[1750845801956,5.67197273,145.43,145.4,6.8737]
[1750845802357,12.54497273,145.43,145.4,6.8737]
[1750845802557,5.67197273,145.41,145.39,6.8742]
[1750845804362,3.40520382,145.4,145.39,6.8742]
[1750845805256,3.40520382,145.4,145.37,8.4976882]
[1750845805566,3.40520382,145.4,145.32,3.40520382]
[1750845805567,3.40520382,145.38,145.34,8.4976882]
[1750845805764,3.40520382,145.38,145.36,6.8755]
[1750845806062,3.40520382,145.38,145.33,8.4976882]
[1750845806257,3.40520382,145.36,145.34,6.8764]
[1750845806665,3.40520382,145.36,145.32,10.7953882]
[1750845806861,3.40520382,145.34,145.3,10.8526882]
[1750845807066,3.40520382,145.32,145.3,2.355]
[1750845807362,3.40520382,145.32,145.3,9.2334]
[1750845807762,3.40520382,145.32,145.3,2.355]
[1750845807962,3.40520382,145.32,145.27,10.7953882]
[1750845807963,3.40995605,145.31,145.27,2.2977]
[1750845808265,3.40995605,145.31,145.26,8.4976882]
[1750845808666,3.40998314,145.3,145.25,10.7844882]
[1750845809667,3.40998314,145.3,145.25,2.2868]
[1750845810258,3.40998314,145.3,145.28,6.8793]
[1750845812370,10.28868314,145.3,145.25,2.2868]
[1750845813370,3.40998314,145.28,145.27,6.8798]
[1750845818168,13.7486,145.4,145.25,2.2868]
[1750845818369,3.40998314,145.31,145.25,2.2868]
[1750845818767,3.40998314,145.31,145.3,6.8784]
[1750845821278,3.40998314,145.31,145.25,2.2868]
[1750845821681,10.28818314,145.31,145.28,6.8794]
[1750845821978,3.40998314,145.29,145.28,6.8794]
[1750845822976,3.40998314,145.36,145.23,2.21]
[1750845823176,3.40998314,145.28,145.23,4.486]
[1750845823779,3.40998314,145.28,145.27,6.8798]
[1750845825081,3.40998314,145.3,145.29,6.879]
[1750845825482,3.40998314,145.3,145.23,4.486]
[1750845825682,3.40998314,145.28,145.23,4.486]
[1750845825980,3.40998314,145.28,145.27,6.8799]
[1750845829180,3.40998314,145.28,145.26,6.8802]
[1750845831191,6.8792,145.29,145.27,6.88]
[1750845831393,3.40998314,145.28,145.27,6.88]
[1750845834995,3.40998314,145.28,145.26,6.8803]
[1750845835402,10.28968314,145.28,145.26,6.8806]
[1750845835593,3.40998314,145.28,145.23,4.486]
[1750845835890,3.40998314,145.28,145.27,6.8801]
[1750845836097,3.40998314,145.31,145.23,7.89598314]
[1750845836795,10.28818314,145.31,145.29,6.8791]
[1750845836994,3.40998314,145.31,145.24,13.763]
[1750845837199,3.40998314,145.31,145.3,6.8787]
[1750845838200,3.40998314,145.31,145.29,6.879]
[1750845839701,3.40998314,145.31,145.3,6.8787]
[1750845840698,3.40998314,145.36,145.24,13.763]
[1750845840699,74.98843629,145.37,145.25,3.40998314]
[1750845840897,3.40998314,145.33,145.25,3.40998314]
[1750845841594,3.40998314,145.33,145.31,6.878]
[1750845841794,3.40998314,145.35,145.27,3.40998314]
[1750845842000,74.98843629,145.37,145.29,3.40998314]
[1750845842001,78.39841943,145.37,145.29,3.40998314]
[1750845842202,3.40998314,145.37,145.3,4.6053]
[1750845842600,3.40998314,145.37,145.35,6.8761]
[1750845843102,10.28538314,145.37,145.34,6.8766]
[1750845844103,3.40998314,145.37,145.33,6.8771]